Department Family,Date Paid,Expense Type,Expense Area,Supplier,Transaction Number,Amount,Vat Inclusive
Crown Prosecution Service ,22/02/24,Right of use asset clearing Buildings,Balance Sheet,Government Property Agency London,00000001/30520,"113,608.11",
Crown Prosecution Service ,05/02/24,New Works: non capital,Estate and FM: Programme,Government Property Agency London,00000001/30577,"281,910.92",Y
Crown Prosecution Service ,23/02/24,Right of use asset clearing Buildings,Balance Sheet,Government Property Agency London,00000001/30931,"162,481.05",
Crown Prosecution Service ,23/02/24,Reactive Maintenance,Estate and FM: Programme,Government Property Agency London,00000001/30945,"55,687.36",
Crown Prosecution Service ,27/02/24,Transcriptions and Translation,Other Corporate Programme Payments,Mendip Media Group Ltd Tiverton,0000000233,"77,867.00",
Crown Prosecution Service ,27/02/24,Recoverable VAT control,Balance Sheet,Mendip Media Group Ltd Tiverton,0000000233,"15,573.40",Y
Crown Prosecution Service ,16/02/24,File Storage,DID Security and Information,Iron Mountain Ltd,0806081,"28,888.00",
Crown Prosecution Service ,16/02/24,Recoverable VAT control,Balance Sheet,Iron Mountain Ltd,0806081,"5,777.60",Y
Crown Prosecution Service ,02/02/24,Crown Court Graduated Fee Scheme,West Midlands Complex Casework Unit,6 Kings Bench Walk- Chambers of D Fisher & D Perry,103858 SS2,"33,498.84",Y
Crown Prosecution Service ,15/02/24,Crown Court Graduated Fee Scheme,London North Complex Casework Unit,6 Kings Bench Walk- Chambers of D Fisher & D Perry,104374 TC,"34,358.76",Y
Crown Prosecution Service ,21/02/24,Crown Court Graduated Fee Scheme,London North Complex Casework Unit,6 Kings Bench Walk- Chambers of D Fisher & D Perry,105006 PRA,"48,534.00",Y
Crown Prosecution Service ,12/02/24,Crown Court Graduated Fee Scheme,London North Complex Casework Unit,6 Kings Bench Walk- Chambers of D Fisher & D Perry,106216 ADS,"34,128.00",Y
Crown Prosecution Service ,12/02/24,Crown Court Graduated Fee Scheme,London North Complex Casework Unit,6 Kings Bench Walk- Chambers of D Fisher & D Perry,106216 GP,"68,258.40",Y
Crown Prosecution Service ,22/02/24,Crown Court Graduated Fee Scheme,Mersey Cheshire Crown Court Unit,Harrington Street Chambers,1171935/AF,"27,337.50",
Crown Prosecution Service ,15/02/24,Crown Court Graduated Fee Scheme,Mersey Cheshire Complex Casework Unit,5 Paper Buildings,120479/DH,"43,013.04",Y
Crown Prosecution Service ,12/02/24,Crown Court Graduated Fee Scheme,London South Crown Court Unit,5 Paper Buildings,121513/BDJ,"49,089.12",Y
Crown Prosecution Service ,22/02/24,Intangibles asset purchase clearing CMS,DTS ICT Capital Expenditure,NTT Data UK Ltd London,121573462,"37,554.00",Y
Crown Prosecution Service ,12/02/24,General Professional Services,DTS Programme Project Cost,NTT Data UK Ltd London,121582162,"61,248.00",Y
Crown Prosecution Service ,12/02/24,IT services,DTS Programme Project Cost,NTT Data UK Ltd London,121582163,"160,440.00",Y
Crown Prosecution Service ,22/02/24,Intangibles asset purchase clearing CMS,DTS ICT Capital Expenditure,NTT Data UK Ltd London,121582164,"183,714.00",Y
Crown Prosecution Service ,12/02/24,IT services,DTS Programme Project Cost,NTT Data UK Ltd London,121582165,"41,418.00",Y
Crown Prosecution Service ,14/02/24,Advice/PreSending Very High Cost Cases Full Scheme,RWD North Unit,St Pauls Chambers Leeds,140408 Inc48 HWA,"29,040.00",Y
Crown Prosecution Service ,12/02/24,Crown Court Graduated Fee Scheme,West Midlands Crown Court Unit,6 Pump Court The Chambers of Mr Stephen Hockman,164417/RB,"25,220.40",Y
Crown Prosecution Service ,02/02/24,Crown Court Graduated Fee Scheme,North East Complex Casework Unit,St Pauls Chambers Leeds,170196,"78,749.50",Y
Crown Prosecution Service ,02/02/24,Crown Court Graduated Fee Scheme,South East Crown Court,5 SAH Services Ltd,177229-1/AE,"27,310.22",Y
Crown Prosecution Service ,07/02/24,Crown Court Graduated Fee Scheme,London North Complex Casework Unit,Furnival Chambers,178336/JDS/,"48,881.88",Y
Crown Prosecution Service ,21/02/24,Crown Court Graduated Fee Scheme,SEOC Team 1,5 SAH Services Ltd,179518-1/AB,"28,138.80",Y
Crown Prosecution Service ,29/02/24,Crown Court Very High Cost Cases Full Scheme,East Midlands Complex Casework Unit,Seven Bedford Row,181065 - JPM 3,"36,189.46",Y
Crown Prosecution Service ,23/02/24,Crown Court Graduated Fee Scheme,London North Complex Casework Unit,23 Essex Street Chambers,181551 - GSM,"48,607.80",Y
Crown Prosecution Service ,26/02/24,Crown Court Graduated Fee Scheme,Thames and Chiltern Complex Casework Unit,23 Essex Street Chambers,195263-FF,"36,307.07",Y
Crown Prosecution Service ,02/02/24,Crown Court Graduated Fee Scheme,London North Complex Casework Unit,23 Essex Street Chambers,201639-ALH,"120,552.24",Y
Crown Prosecution Service ,05/02/24,Crown Court Very High Cost Cases Full Scheme,SEOC Team 1,Foundry Chambers (9-12 Bell Yard),202028/MC,"25,478.80",Y
Crown Prosecution Service ,22/02/24,Crown Court Graduated Fee Scheme,West Midlands Crown Court Unit,23 Essex Street Chambers,207765-LWI,"30,503.76",Y
Crown Prosecution Service ,28/02/24,Crown Court Graduated Fee Scheme,East of England Crown Court,Drystone Chambers (Dyers),207847,"34,093.44",Y
Crown Prosecution Service ,26/02/24,Crown Court Graduated Fee Scheme,West Midlands Complex Casework Unit,36 Bedford Row,208661 NS Trial,"44,173.80",Y
Crown Prosecution Service ,14/02/24,Crown Court Graduated Fee Scheme,West Midlands Complex Casework Unit,36 Bedford Row,20866-SA-Trial,"87,364.80",Y
Crown Prosecution Service ,26/02/24,Crown Court Graduated Fee Scheme,East Midlands Complex Casework Unit,5 SAH Services Ltd,223952/DT. 36 Group,"26,137.20",Y
Crown Prosecution Service ,02/02/24,Professional subscriptions and memberships,Operational Change,Crimeline Training Ltd Wigan,22585,"45,328.80",Y
Crown Prosecution Service ,12/02/24,Crown Court Graduated Fee Scheme,Thames and Chiltern Complex Casework Unit,36 Bedford Row,229026,"26,351.57",Y
Crown Prosecution Service ,22/02/24,Recoverable VAT control,Balance Sheet,Trustmarque Solutions Ltd,2378265,"13,488.87",Y
Crown Prosecution Service ,22/02/24,IT non capital software licences,Legal Reference and ICT Licenses,Trustmarque Solutions Ltd,2378265,"67,444.36",
Crown Prosecution Service ,15/02/24,Crown Court Graduated Fee Scheme,London North Complex Casework Unit,3 Raymond Buildings,254500-WEJ1,"98,785.56",Y
Crown Prosecution Service ,26/02/24,Crown Court Graduated Fee Scheme,London North Complex Casework Unit,3 Raymond Buildings,255140-WEJ,"26,582.40",Y
Crown Prosecution Service ,14/02/24,Crown Court Graduated Fee Scheme,South East Crown Court,3 Raymond Buildings,256620-RWD,"35,454.96",Y
Crown Prosecution Service ,15/02/24,Crown Court Graduated Fee Scheme,East Midlands Crown Court Section,Castle Gate Chambers,276790 AVKC,"35,754.12",Y
Crown Prosecution Service ,26/02/24,Crown Court Graduated Fee Scheme,Thames Chiltern Crown Court Unit,2 Kings Bench Walk London,298083-DW,"25,553.40",
Crown Prosecution Service ,29/02/24,Crown Court Graduated Fee Scheme,London South Crown Court Unit,2 Kings Bench Walk London,300411-GO-TRIAL,"34,065.60",
Crown Prosecution Service ,14/02/24,Crown Court Graduated Fee Scheme,North West RASSO Unit,18 St John Street - Chambers of Peter Birkett QC,315390-1/MAB,"30,241.20",Y
Crown Prosecution Service ,22/02/24,Shared services,DID DTS Change,Cabinet Office RM Shared Services,3837522,"92,645.00",
Crown Prosecution Service ,21/02/24,Shared services,PF HR Business Management,Cabinet Office RM Shared Services,3837584,"276,286.80",Y
Crown Prosecution Service ,09/02/24,Crown Court Graduated Fee Scheme,Yorkshire and Humberside Complex Casework Unit,Dere Street Barristers,385852 DC3,"27,561.12",
Crown Prosecution Service ,02/02/24,Crown Court Graduated Fee Scheme,Yorkshire and Humberside Complex Casework Unit,Dere Street Barristers,385852 JE3,"45,872.76",
Crown Prosecution Service ,19/02/24,IT services,ICT Network Services,Vodafone Ltd formerly Cable and Wireless Milton Keynes,4040791,"34,335.79",Y
Crown Prosecution Service ,19/02/24,IT non capital software licences,Legal Reference and ICT Licenses,Oracle Corporation UK Ltd,460124816,"93,201.86",
Crown Prosecution Service ,19/02/24,Recoverable VAT control,Balance Sheet,Oracle Corporation UK Ltd,460124816,"18,640.37",Y
Crown Prosecution Service ,23/02/24,Crown Court Graduated Fee Scheme,Yorkshire and Humberside Complex Casework Unit,Park Square Barristers (No 6 and Sovereign merged),521046/KR/2,"31,109.28",Y
Crown Prosecution Service ,09/02/24,Crown Court Graduated Fee Scheme,North East Complex Casework Unit,Park Square Barristers (No 6 and Sovereign merged),532061/CM/TRL,"35,674.20",Y
Crown Prosecution Service ,02/02/24,Admin agency staff,CFO Commercial,Michael Page International Recruitment Limited Slough,6980993,"31,164.00",Y
Crown Prosecution Service ,09/02/24,Crown Court Graduated Fee Scheme,West Midlands Crown Court Unit,St Philips Chambers,701346 AMJ,"42,835.80",Y
Crown Prosecution Service ,09/02/24,Crown Court Graduated Fee Scheme,West Midlands Crown Court Unit,St Philips Chambers,701346 RWKC,"81,889.56",Y
Crown Prosecution Service ,16/02/24,Crown Court Very High Cost Cases Full Scheme,Wessex Complex Casework Unit,No 5 Fountain Court Chambers,831023/MCD/,"44,205.40",Y
Crown Prosecution Service ,09/02/24,Crown Court Graduated Fee Scheme,Wessex Crown Court Unit,No 5 Fountain Court Chambers,836511/MPB/,"45,855.00",Y
Crown Prosecution Service ,15/02/24,Crown Court Graduated Fee Scheme,East Midlands Crown Court Section,No 5 Fountain Court Chambers,845883/MLH/,"26,866.50",Y
Crown Prosecution Service ,26/02/24,Crown Court Graduated Fee Scheme,West Midlands Crown Court Unit,No 5 Fountain Court Chambers,847328/MH/,"42,903.72",Y
Crown Prosecution Service ,05/02/24,Apprenticeship Levy payments Permanent,Other Corporate Admin Payments,HM Revenue and Customs,948PB000021422410,"11,140.80",
Crown Prosecution Service ,05/02/24,Apprenticeship Levy payments Permanent,Other Corporate Programme Payments,HM Revenue and Customs,948PB000021422410,"128,119.20",
Crown Prosecution Service ,12/02/24,Crown Court Graduated Fee Scheme,London North Complex Casework Unit,5 King's Bench Walk,AOKC171173.RT,"97,214.38",Y
Crown Prosecution Service ,28/02/24,Crown Court Graduated Fee Scheme,London North Complex Casework Unit,QEB Hollis Whiteman Chambers,AWH 114126 a,"31,716.00",Y
Crown Prosecution Service ,02/02/24,Recoverable VAT control,Balance Sheet,Konica Minolta Business Solutions Limited,Bulk202312,"22,802.29",Y
Crown Prosecution Service ,02/02/24,Variable lease payment expenses IT and Equipment,Print Contract,Konica Minolta Business Solutions Limited,Bulk202312,"93,221.43",Y
Crown Prosecution Service ,02/02/24,Lease liability non current lease payments,Balance Sheet,Konica Minolta Business Solutions Limited,Bulk202312,"20,790.00",
Crown Prosecution Service ,20/02/24,Recoverable VAT control,Balance Sheet,Konica Minolta Business Solutions Limited,Bulk202401,"36,724.20",Y
Crown Prosecution Service ,20/02/24,Lease liability non current lease payments,Balance Sheet,Konica Minolta Business Solutions Limited,Bulk202401,"20,790.00",
Crown Prosecution Service ,20/02/24,Variable lease payment expenses IT and Equipment,Print Contract,Konica Minolta Business Solutions Limited,Bulk202401,"162,830.99",
Crown Prosecution Service ,02/02/24,Crown Court Graduated Fee Scheme,Special Crime Unit York,2 Bedford Row Chambers,CA198994/1,"33,198.95",
Crown Prosecution Service ,26/02/24,Crown Court Graduated Fee Scheme,London North Complex Casework Unit,5 King's Bench Walk,CF178063,"29,218.80",Y
Crown Prosecution Service ,22/02/24,UK Hotels,Corporate Communication,Clarity Travel Management,CPSHQ110224,399.20,Y
Crown Prosecution Service ,22/02/24,UK Hotels,DID Security and Information,Clarity Travel Management,CPSHQ110224,153.00,Y
Crown Prosecution Service ,22/02/24,UK Hotels,PF HR Business Partnering,Clarity Travel Management,CPSHQ110224,95.01,Y
Crown Prosecution Service ,22/02/24,UK Hotels,Strategy and Policy,Clarity Travel Management,CPSHQ110224,89.00,Y
Crown Prosecution Service ,22/02/24,UK Hotels,Central Operational Training,Clarity Travel Management,CPSHQ110224,256.80,Y
Crown Prosecution Service ,22/02/24,UK Hotels,Private Office,Clarity Travel Management,CPSHQ110224,663.00,Y
Crown Prosecution Service ,22/02/24,UK Hotels,Central Legal Training Team,Clarity Travel Management,CPSHQ110224,"1,596.92",Y
Crown Prosecution Service ,22/02/24,UK Hotels,PF Learning and Development General,Clarity Travel Management,CPSHQ110224,532.80,Y
Crown Prosecution Service ,22/02/24,UK Hotels,DID DTS Technology,Clarity Travel Management,CPSHQ110224,"1,016.02",Y
Crown Prosecution Service ,22/02/24,UK Hotels,PF People and Business Change,Clarity Travel Management,CPSHQ110224,743.90,Y
Crown Prosecution Service ,22/02/24,UK National rail travel,DID DTS Change,Clarity Travel Management,CPSHQ110224,"2,992.55",
Crown Prosecution Service ,22/02/24,UK National rail travel,PF Learning and Development General,Clarity Travel Management,CPSHQ110224,"2,095.30",
Crown Prosecution Service ,22/02/24,UK National rail travel,Corporate Communication,Clarity Travel Management,CPSHQ110224,"2,060.60",
Crown Prosecution Service ,22/02/24,UK National rail travel,CFO Estates,Clarity Travel Management,CPSHQ110224,336.40,
Crown Prosecution Service ,22/02/24,UK National rail travel,DID Security and Information,Clarity Travel Management,CPSHQ110224,498.60,
Crown Prosecution Service ,22/02/24,UK National rail travel,PF HR Business Management,Clarity Travel Management,CPSHQ110224,342.70,
Crown Prosecution Service ,22/02/24,UK National rail travel,DID Central Leadership Team,Clarity Travel Management,CPSHQ110224,172.40,
Crown Prosecution Service ,22/02/24,UK National rail travel,PF HR Business Partnering,Clarity Travel Management,CPSHQ110224,304.00,
Crown Prosecution Service ,22/02/24,UK National rail travel,Central Operational Training,Clarity Travel Management,CPSHQ110224,854.00,
Crown Prosecution Service ,22/02/24,UK National rail travel,Strategy and Policy,Clarity Travel Management,CPSHQ110224,866.35,
Crown Prosecution Service ,22/02/24,UK National rail travel,PF Analytics and Workforce Plan,Clarity Travel Management,CPSHQ110224,358.20,
Crown Prosecution Service ,22/02/24,UK National rail travel,Operational Performance,Clarity Travel Management,CPSHQ110224,306.00,
Crown Prosecution Service ,22/02/24,UK National rail travel,CFO Financial Reporting,Clarity Travel Management,CPSHQ110224,509.40,
Crown Prosecution Service ,22/02/24,UK National rail travel,Central Legal Training Team,Clarity Travel Management,CPSHQ110224,"2,180.70",
Crown Prosecution Service ,22/02/24,UK National rail travel,CFO Fin System Change and Costings,Clarity Travel Management,CPSHQ110224,125.00,
Crown Prosecution Service ,22/02/24,UK National rail travel,Victim Transformation Prog,Clarity Travel Management,CPSHQ110224,144.10,
Crown Prosecution Service ,22/02/24,UK National rail travel,Permanent Transfer Costs,Clarity Travel Management,CPSHQ110224,539.10,
Crown Prosecution Service ,22/02/24,UK National rail travel,DID DTS Technology,Clarity Travel Management,CPSHQ110224,571.60,
Crown Prosecution Service ,22/02/24,UK National rail travel,Operational Business Support,Clarity Travel Management,CPSHQ110224,194.70,
Crown Prosecution Service ,22/02/24,UK National rail travel,DTUS,Clarity Travel Management,CPSHQ110224,261.60,
Crown Prosecution Service ,22/02/24,UK National rail travel,Private Office,Clarity Travel Management,CPSHQ110224,642.50,
Crown Prosecution Service ,22/02/24,UK National rail travel,DID Operational Process,Clarity Travel Management,CPSHQ110224,431.30,
Crown Prosecution Service ,22/02/24,UK National rail travel,PF Resourcing,Clarity Travel Management,CPSHQ110224,313.35,
Crown Prosecution Service ,22/02/24,UK National rail travel,PF HR Systems and Information,Clarity Travel Management,CPSHQ110224,369.70,
Crown Prosecution Service ,22/02/24,UK National rail travel,Court Business Unit,Clarity Travel Management,CPSHQ110224,455.80,
Crown Prosecution Service ,22/02/24,UK National rail travel,PF HR Operations,Clarity Travel Management,CPSHQ110224,"2,102.80",
Crown Prosecution Service ,22/02/24,UK National rail travel,CFO Finance Operations,Clarity Travel Management,CPSHQ110224,394.70,
Crown Prosecution Service ,22/02/24,UK National rail travel,Director of Legal Services,Clarity Travel Management,CPSHQ110224,335.40,
Crown Prosecution Service ,22/02/24,UK National rail travel,Head of Communication,Clarity Travel Management,CPSHQ110224,219.70,
Crown Prosecution Service ,22/02/24,UK Hotels,PF Resourcing,Clarity Travel Management,CPSHQ110224,57.27,
Crown Prosecution Service ,22/02/24,UK National rail travel,Chief Finance Officer,Clarity Travel Management,CPSHQ110224,"1,632.40",
Crown Prosecution Service ,22/02/24,UK National rail travel,PF People and Business Change,Clarity Travel Management,CPSHQ110224,"1,445.30",
Crown Prosecution Service ,22/02/24,UK Hotels,DID Central Leadership Team,Clarity Travel Management,CPSHQ180224,"1,065.23",Y
Crown Prosecution Service ,22/02/24,UK Hotels,Central Legal Training Team,Clarity Travel Management,CPSHQ180224,"1,692.07",Y
Crown Prosecution Service ,22/02/24,UK Hotels,DTUS,Clarity Travel Management,CPSHQ180224,146.52,Y
Crown Prosecution Service ,22/02/24,UK Hotels,Private Office,Clarity Travel Management,CPSHQ180224,165.00,Y
Crown Prosecution Service ,22/02/24,UK Hotels,DID DTS Technology,Clarity Travel Management,CPSHQ180224,"2,508.92",Y
Crown Prosecution Service ,22/02/24,UK Hotels,PF HR Systems and Information,Clarity Travel Management,CPSHQ180224,655.20,Y
Crown Prosecution Service ,22/02/24,UK Hotels,DID Security and Information,Clarity Travel Management,CPSHQ180224,783.66,Y
Crown Prosecution Service ,22/02/24,UK Hotels,CFO Estates,Clarity Travel Management,CPSHQ180224,643.41,Y
Crown Prosecution Service ,22/02/24,UK Hotels,Strategy and Policy,Clarity Travel Management,CPSHQ180224,"1,220.13",Y
Crown Prosecution Service ,22/02/24,UK Hotels,PF People and Business Change,Clarity Travel Management,CPSHQ180224,505.15,Y
Crown Prosecution Service ,22/02/24,UK Hotels,Operational Change,Clarity Travel Management,CPSHQ180224,312.00,Y
Crown Prosecution Service ,22/02/24,UK Hotels,PF Learning and Development General,Clarity Travel Management,CPSHQ180224,756.76,Y
Crown Prosecution Service ,22/02/24,UK Hotels,DID Operational Process,Clarity Travel Management,CPSHQ180224,334.83,Y
Crown Prosecution Service ,22/02/24,UK Hotels,Operational Business Support,Clarity Travel Management,CPSHQ180224,213.98,Y
Crown Prosecution Service ,22/02/24,UK Hotels,DID DTS Change,Clarity Travel Management,CPSHQ180224,"3,561.91",Y
Crown Prosecution Service ,22/02/24,UK Hotels,Operational Performance,Clarity Travel Management,CPSHQ180224,242.01,Y
Crown Prosecution Service ,22/02/24,UK Hotels,Permanent Transfer Costs,Clarity Travel Management,CPSHQ180224,234.61,Y
Crown Prosecution Service ,22/02/24,UK Hotels,PF Resourcing,Clarity Travel Management,CPSHQ180224,152.15,Y
Crown Prosecution Service ,22/02/24,UK Hotels,CFO Commercial,Clarity Travel Management,CPSHQ180224,58.00,Y
Crown Prosecution Service ,22/02/24,UK Hotels,Director of Legal Services,Clarity Travel Management,CPSHQ180224,247.20,Y
Crown Prosecution Service ,22/02/24,UK National rail travel,PF HR Operations,Clarity Travel Management,CPSHQ180224,759.00,
Crown Prosecution Service ,22/02/24,UK National rail travel,Press Office,Clarity Travel Management,CPSHQ180224,982.00,
Crown Prosecution Service ,22/02/24,UK National rail travel,PF HR Business Partnering,Clarity Travel Management,CPSHQ180224,387.60,
Crown Prosecution Service ,22/02/24,UK National rail travel,Court Business Unit,Clarity Travel Management,CPSHQ180224,998.80,
Crown Prosecution Service ,22/02/24,UK National rail travel,DID DTS Change,Clarity Travel Management,CPSHQ180224,"1,499.10",
Crown Prosecution Service ,22/02/24,UK National rail travel,CFO Commercial,Clarity Travel Management,CPSHQ180224,881.20,
Crown Prosecution Service ,22/02/24,UK National rail travel,Central Operational Training,Clarity Travel Management,CPSHQ180224,"1,572.80",
Crown Prosecution Service ,22/02/24,UK National rail travel,Operational Performance,Clarity Travel Management,CPSHQ180224,278.70,
Crown Prosecution Service ,22/02/24,UK National rail travel,Corporate Communication,Clarity Travel Management,CPSHQ180224,"1,741.30",
Crown Prosecution Service ,22/02/24,UK National rail travel,PF People and Business Change,Clarity Travel Management,CPSHQ180224,"2,027.00",
Crown Prosecution Service ,22/02/24,UK National rail travel,Central Legal Training Team,Clarity Travel Management,CPSHQ180224,"2,469.30",
Crown Prosecution Service ,22/02/24,UK National rail travel,PF Resourcing,Clarity Travel Management,CPSHQ180224,"1,228.15",
Crown Prosecution Service ,22/02/24,UK National rail travel,Compliance and Assurance,Clarity Travel Management,CPSHQ180224,121.60,
Crown Prosecution Service ,22/02/24,UK National rail travel,Strategy and Policy,Clarity Travel Management,CPSHQ180224,"1,340.10",
Crown Prosecution Service ,22/02/24,UK National rail travel,Private Office,Clarity Travel Management,CPSHQ180224,"1,120.40",
Crown Prosecution Service ,22/02/24,UK National rail travel,DID Security and Information,Clarity Travel Management,CPSHQ180224,862.10,
Crown Prosecution Service ,22/02/24,UK Hotels,PF HR Business Partnering,Clarity Travel Management,CPSHQ180224,322.52,
Crown Prosecution Service ,22/02/24,UK National rail travel,DTUS,Clarity Travel Management,CPSHQ180224,374.60,
Crown Prosecution Service ,22/02/24,UK National rail travel,Permanent Transfer Costs,Clarity Travel Management,CPSHQ180224,356.90,
Crown Prosecution Service ,22/02/24,UK National rail travel,CFO Estates,Clarity Travel Management,CPSHQ180224,558.80,
Crown Prosecution Service ,22/02/24,UK National rail travel,DID Central Leadership Team,Clarity Travel Management,CPSHQ180224,191.30,
Crown Prosecution Service ,22/02/24,UK National rail travel,DID DTS Technology,Clarity Travel Management,CPSHQ180224,317.80,
Crown Prosecution Service ,22/02/24,UK National rail travel,Victim Transformation Prog,Clarity Travel Management,CPSHQ180224,394.70,
Crown Prosecution Service ,22/02/24,UK National rail travel,PF Learning and Development General,Clarity Travel Management,CPSHQ180224,"4,276.10",
Crown Prosecution Service ,22/02/24,UK National rail travel,PF Analytics and Workforce Plan,Clarity Travel Management,CPSHQ180224,292.70,
Crown Prosecution Service ,22/02/24,UK National rail travel,DID Corporate Portfolio Office,Clarity Travel Management,CPSHQ180224,81.00,
Crown Prosecution Service ,22/02/24,UK National rail travel,DID Operational Process,Clarity Travel Management,CPSHQ180224,90.00,
Crown Prosecution Service ,22/02/24,UK National rail travel,Chief Finance Officer,Clarity Travel Management,CPSHQ180224,288.90,
Crown Prosecution Service ,22/02/24,UK National rail travel,Operational Change,Clarity Travel Management,CPSHQ180224,893.00,
Crown Prosecution Service ,28/02/24,UK Hotels,PF Learning and Development General,Clarity Travel Management,CPSHQ250224,"1,414.14",Y
Crown Prosecution Service ,28/02/24,UK National rail travel,Operational Performance,Clarity Travel Management,CPSHQ250224,314.50,
Crown Prosecution Service ,28/02/24,UK Hotels,Central Legal Training Team,Clarity Travel Management,CPSHQ250224,436.66,Y
Crown Prosecution Service ,28/02/24,UK Hotels,DID Security and Information,Clarity Travel Management,CPSHQ250224,353.80,Y
Crown Prosecution Service ,28/02/24,UK Hotels,Private Office,Clarity Travel Management,CPSHQ250224,497.52,Y
Crown Prosecution Service ,28/02/24,UK Hotels,DID DTS Technology,Clarity Travel Management,CPSHQ250224,571.20,Y
Crown Prosecution Service ,28/02/24,UK Hotels,PF Resourcing,Clarity Travel Management,CPSHQ250224,75.00,Y
Crown Prosecution Service ,28/02/24,UK Hotels,Press Office,Clarity Travel Management,CPSHQ250224,86.80,Y
Crown Prosecution Service ,28/02/24,UK Hotels,DID DTS Change,Clarity Travel Management,CPSHQ250224,"2,122.60",Y
Crown Prosecution Service ,28/02/24,UK Hotels,Chief Finance Officer,Clarity Travel Management,CPSHQ250224,153.00,Y
Crown Prosecution Service ,28/02/24,UK Hotels,Strategy and Policy,Clarity Travel Management,CPSHQ250224,764.92,Y
Crown Prosecution Service ,28/02/24,UK Hotels,Corporate Communication,Clarity Travel Management,CPSHQ250224,410.85,Y
Crown Prosecution Service ,28/02/24,UK Hotels,Central Operational Training,Clarity Travel Management,CPSHQ250224,309.91,Y
Crown Prosecution Service ,28/02/24,UK Hotels,PF Analytics and Workforce Plan,Clarity Travel Management,CPSHQ250224,198.90,Y
Crown Prosecution Service ,28/02/24,UK National rail travel,PF HR Operations,Clarity Travel Management,CPSHQ250224,"1,650.10",
Crown Prosecution Service ,28/02/24,UK National rail travel,Operational Business Support,Clarity Travel Management,CPSHQ250224,399.20,
Crown Prosecution Service ,28/02/24,UK National rail travel,DID Central Leadership Team,Clarity Travel Management,CPSHQ250224,653.30,
Crown Prosecution Service ,28/02/24,UK National rail travel,CFO Strategic Financial Planning,Clarity Travel Management,CPSHQ250224,651.40,
Crown Prosecution Service ,28/02/24,UK National rail travel,Central Legal Training Team,Clarity Travel Management,CPSHQ250224,538.80,
Crown Prosecution Service ,28/02/24,UK National rail travel,Compliance and Assurance,Clarity Travel Management,CPSHQ250224,155.90,
Crown Prosecution Service ,28/02/24,UK National rail travel,CFO Commercial,Clarity Travel Management,CPSHQ250224,445.20,
Crown Prosecution Service ,28/02/24,UK National rail travel,Chief Finance Officer,Clarity Travel Management,CPSHQ250224,741.50,
Crown Prosecution Service ,28/02/24,UK National rail travel,PF People and Business Change,Clarity Travel Management,CPSHQ250224,608.30,
Crown Prosecution Service ,28/02/24,UK National rail travel,CFO Financial Reporting,Clarity Travel Management,CPSHQ250224,138.40,
Crown Prosecution Service ,28/02/24,UK National rail travel,Victim Transformation Prog,Clarity Travel Management,CPSHQ250224,"1,401.60",
Crown Prosecution Service ,28/02/24,UK National rail travel,Permanent Transfer Costs,Clarity Travel Management,CPSHQ250224,152.60,
Crown Prosecution Service ,28/02/24,UK National rail travel,Corporate Communication,Clarity Travel Management,CPSHQ250224,755.50,
Crown Prosecution Service ,28/02/24,UK National rail travel,Operational Change,Clarity Travel Management,CPSHQ250224,"1,599.00",
Crown Prosecution Service ,28/02/24,UK National rail travel,Director of Legal Services,Clarity Travel Management,CPSHQ250224,370.40,
Crown Prosecution Service ,28/02/24,UK National rail travel,PF Analytics and Workforce Plan,Clarity Travel Management,CPSHQ250224,350.10,
Crown Prosecution Service ,28/02/24,UK National rail travel,DID DTS Technology,Clarity Travel Management,CPSHQ250224,187.40,
Crown Prosecution Service ,28/02/24,UK National rail travel,PF HR Business Management,Clarity Travel Management,CPSHQ250224,760.20,
Crown Prosecution Service ,28/02/24,UK National rail travel,DID DTS Change,Clarity Travel Management,CPSHQ250224,"2,331.35",
Crown Prosecution Service ,28/02/24,UK National rail travel,Strategy and Policy,Clarity Travel Management,CPSHQ250224,"1,292.70",
Crown Prosecution Service ,28/02/24,UK National rail travel,DTUS,Clarity Travel Management,CPSHQ250224,129.80,
Crown Prosecution Service ,28/02/24,UK National rail travel,DID Security and Information,Clarity Travel Management,CPSHQ250224,827.00,
Crown Prosecution Service ,28/02/24,UK National rail travel,PF Resourcing,Clarity Travel Management,CPSHQ250224,114.20,
Crown Prosecution Service ,28/02/24,UK National rail travel,PF Learning and Development General,Clarity Travel Management,CPSHQ250224,923.50,
Crown Prosecution Service ,28/02/24,UK National rail travel,Court Business Unit,Clarity Travel Management,CPSHQ250224,971.20,
Crown Prosecution Service ,28/02/24,UK National rail travel,Central Operational Training,Clarity Travel Management,CPSHQ250224,379.65,
Crown Prosecution Service ,28/02/24,UK National rail travel,PF HR Business Partnering,Clarity Travel Management,CPSHQ250224,"2,013.80",
Crown Prosecution Service ,28/02/24,UK National rail travel,CFO Estates,Clarity Travel Management,CPSHQ250224,49.80,
Crown Prosecution Service ,28/02/24,UK Hotels,Permanent Transfer Costs,Clarity Travel Management,CPSHQ250224,312.60,Y
Crown Prosecution Service ,22/02/24,UK Hotels,PF Resourcing,Clarity Travel Management,CPSHQ280124,77.20,Y
Crown Prosecution Service ,22/02/24,UK Hotels,Operational Business Support,Clarity Travel Management,CPSHQ280124,218.20,Y
Crown Prosecution Service ,22/02/24,UK Hotels,DID Central Leadership Team,Clarity Travel Management,CPSHQ280124,433.80,Y
Crown Prosecution Service ,22/02/24,UK Hotels,PF HR Business Partnering,Clarity Travel Management,CPSHQ280124,232.45,Y
Crown Prosecution Service ,22/02/24,UK Hotels,Strategy and Policy,Clarity Travel Management,CPSHQ280124,991.32,Y
Crown Prosecution Service ,22/02/24,UK Hotels,Corporate Communication,Clarity Travel Management,CPSHQ280124,337.00,Y
Crown Prosecution Service ,22/02/24,UK Hotels,Central Legal Training Team,Clarity Travel Management,CPSHQ280124,"1,571.66",Y
Crown Prosecution Service ,22/02/24,UK Hotels,DID DTS Technology,Clarity Travel Management,CPSHQ280124,432.00,Y
Crown Prosecution Service ,22/02/24,Overseas Hotels,Central Legal Training Team,Clarity Travel Management,CPSHQ280124,103.00,Y
Crown Prosecution Service ,22/02/24,UK Hotels,DID Security and Information,Clarity Travel Management,CPSHQ280124,331.00,Y
Crown Prosecution Service ,22/02/24,UK Hotels,Central Operational Training,Clarity Travel Management,CPSHQ280124,78.52,Y
Crown Prosecution Service ,22/02/24,UK Hotels,Permanent Transfer Costs,Clarity Travel Management,CPSHQ280124,600.80,Y
Crown Prosecution Service ,22/02/24,UK Hotels,PF People and Business Change,Clarity Travel Management,CPSHQ280124,825.20,Y
Crown Prosecution Service ,22/02/24,UK Hotels,DTUS,Clarity Travel Management,CPSHQ280124,491.89,Y
Crown Prosecution Service ,22/02/24,UK Hotels,Operational Change,Clarity Travel Management,CPSHQ280124,162.00,Y
Crown Prosecution Service ,22/02/24,UK Hotels,DID DTS Change,Clarity Travel Management,CPSHQ280124,"1,697.80",Y
Crown Prosecution Service ,22/02/24,UK Hotels,Director of Legal Services,Clarity Travel Management,CPSHQ280124,312.00,Y
Crown Prosecution Service ,22/02/24,UK Hotels,Private Office,Clarity Travel Management,CPSHQ280124,309.00,Y
Crown Prosecution Service ,22/02/24,UK Hotels,Victim Transformation Prog,Clarity Travel Management,CPSHQ280124,756.61,Y
Crown Prosecution Service ,22/02/24,UK National rail travel,PF HR Systems and Information,Clarity Travel Management,CPSHQ280124,29.50,
Crown Prosecution Service ,22/02/24,UK National rail travel,DID DTS Technology,Clarity Travel Management,CPSHQ280124,814.20,
Crown Prosecution Service ,22/02/24,UK National rail travel,Private Office,Clarity Travel Management,CPSHQ280124,647.70,
Crown Prosecution Service ,22/02/24,UK National rail travel,DID Operational Process,Clarity Travel Management,CPSHQ280124,324.10,
Crown Prosecution Service ,22/02/24,UK National rail travel,Operational Business Support,Clarity Travel Management,CPSHQ280124,380.70,
Crown Prosecution Service ,22/02/24,UK National rail travel,CFO Fin System Change and Costings,Clarity Travel Management,CPSHQ280124,371.90,
Crown Prosecution Service ,22/02/24,UK National rail travel,PF HR Business Partnering,Clarity Travel Management,CPSHQ280124,800.60,
Crown Prosecution Service ,22/02/24,UK National rail travel,Permanent Transfer Costs,Clarity Travel Management,CPSHQ280124,345.30,
Crown Prosecution Service ,22/02/24,UK National rail travel,Strategy and Policy,Clarity Travel Management,CPSHQ280124,"1,042.60",
Crown Prosecution Service ,22/02/24,UK National rail travel,PF HR Operations,Clarity Travel Management,CPSHQ280124,"1,462.60",
Crown Prosecution Service ,22/02/24,UK National rail travel,Chief Finance Officer,Clarity Travel Management,CPSHQ280124,574.40,
Crown Prosecution Service ,22/02/24,UK National rail travel,DID DTS Change,Clarity Travel Management,CPSHQ280124,"1,610.35",
Crown Prosecution Service ,22/02/24,UK National rail travel,Central Operational Training,Clarity Travel Management,CPSHQ280124,371.60,
Crown Prosecution Service ,22/02/24,UK National rail travel,DID Corporate Portfolio Office,Clarity Travel Management,CPSHQ280124,99.50,
Crown Prosecution Service ,22/02/24,UK National rail travel,CFO Commercial,Clarity Travel Management,CPSHQ280124,234.45,
Crown Prosecution Service ,22/02/24,UK National rail travel,Court Business Unit,Clarity Travel Management,CPSHQ280124,71.20,
Crown Prosecution Service ,22/02/24,UK National rail travel,Corporate Communication,Clarity Travel Management,CPSHQ280124,"1,369.90",
Crown Prosecution Service ,22/02/24,UK National rail travel,PF Analytics and Workforce Plan,Clarity Travel Management,CPSHQ280124,239.70,
Crown Prosecution Service ,22/02/24,UK National rail travel,Operational Change,Clarity Travel Management,CPSHQ280124,821.70,
Crown Prosecution Service ,22/02/24,UK National rail travel,PF Learning and Development General,Clarity Travel Management,CPSHQ280124,647.20,
Crown Prosecution Service ,22/02/24,UK National rail travel,DID Central Leadership Team,Clarity Travel Management,CPSHQ280124,90.50,
Crown Prosecution Service ,22/02/24,UK National rail travel,PF Resourcing,Clarity Travel Management,CPSHQ280124,"1,175.70",
Crown Prosecution Service ,22/02/24,UK National rail travel,PF Learning and Development General,Clarity Travel Management,CPSHQ280124,508.90,
Crown Prosecution Service ,22/02/24,UK National rail travel,Central Legal Training Team,Clarity Travel Management,CPSHQ280124,732.90,
Crown Prosecution Service ,22/02/24,UK National rail travel,PF People and Business Change,Clarity Travel Management,CPSHQ280124,"1,827.70",
Crown Prosecution Service ,22/02/24,UK National rail travel,CFO Estates,Clarity Travel Management,CPSHQ280124,222.80,
Crown Prosecution Service ,22/02/24,UK National rail travel,Compliance and Assurance,Clarity Travel Management,CPSHQ280124,"1,349.10",
Crown Prosecution Service ,22/02/24,UK National rail travel,DID Security and Information,Clarity Travel Management,CPSHQ280124,"1,013.60",
Crown Prosecution Service ,22/02/24,UK National rail travel,CFO Risk and Assurance,Clarity Travel Management,CPSHQ280124,"1,115.20",
Crown Prosecution Service ,22/02/24,UK National rail travel,Director of Legal Services,Clarity Travel Management,CPSHQ280124,408.10,
Crown Prosecution Service ,22/02/24,UK National rail travel,Victim Transformation Prog,Clarity Travel Management,CPSHQ280124,28.00,
Crown Prosecution Service ,29/02/24,Crown Court Graduated Fee Scheme,London North Crown Court Unit,5 King's Bench Walk,DRE178883,"53,125.80",Y
Crown Prosecution Service ,02/02/24,Crown Court Graduated Fee Scheme,London North Complex Casework Unit,QEB Hollis Whiteman Chambers,EB 114234 A,"64,380.72",Y
Crown Prosecution Service ,07/02/24,Recoverable VAT control,Balance Sheet,Epiq Europe Ltd (Wordwave),EINV38098,"5,413.24",Y
Crown Prosecution Service ,07/02/24,Transcriptions and Translation,Other Corporate Programme Payments,Epiq Europe Ltd (Wordwave),EINV38098,"27,066.20",
Crown Prosecution Service ,29/02/24,Other publicity and media costs,PF Operational HR Costs,Manning Gottleib OMD London,F50405,"36,645.46",Y
Crown Prosecution Service ,20/02/24,Recoverable VAT control,Balance Sheet,Konica Minolta Business Solutions Limited,Fleet202401,"18,124.33",Y
Crown Prosecution Service ,20/02/24,Lease liability non current lease payments,Balance Sheet,Konica Minolta Business Solutions Limited,Fleet202401,"14,730.00",
Crown Prosecution Service ,20/02/24,Variable lease payment expenses IT and Equipment,Print Contract,Konica Minolta Business Solutions Limited,Fleet202401,"75,891.65",
Crown Prosecution Service ,12/02/24,IT services,Apps and Hosting Contract,CGI IT UK Ltd,GB014123874,"22,879.70",
Crown Prosecution Service ,12/02/24,Recoverable VAT control,Balance Sheet,CGI IT UK Ltd,GB014123874,"4,575.94",Y
Crown Prosecution Service ,12/02/24,IT services,DTS Programme Project Cost,CGI IT UK Ltd,GB014124293,"62,745.32",Y
Crown Prosecution Service ,12/02/24,IT services,DTS Programme Project Cost,CGI IT UK Ltd,GB014124297,"32,031.85",Y
Crown Prosecution Service ,12/02/24,Recoverable VAT control,Balance Sheet,CGI IT UK Ltd,GB014124885,"199,143.67",Y
Crown Prosecution Service ,12/02/24,IT services,Apps and Hosting Contract,CGI IT UK Ltd,GB014124885,"995,718.34",
Crown Prosecution Service ,13/02/24,IT services,DTS Programme Project Cost,CGI IT UK Ltd,GB014124939,"25,832.68",Y
Crown Prosecution Service ,26/02/24,Recoverable VAT control,Balance Sheet,CGI IT UK Ltd,GB014125494,"4,488.45",Y
Crown Prosecution Service ,26/02/24,Intangibles asset purchase clearing CMS,DTS ICT Capital Expenditure,CGI IT UK Ltd,GB014125494,"22,442.27",
Crown Prosecution Service ,26/02/24,Recoverable VAT control,Balance Sheet,CGI IT UK Ltd,GB014125496,"38,643.51",Y
Crown Prosecution Service ,26/02/24,Intangibles asset purchase clearing CMS,DTS ICT Capital Expenditure,CGI IT UK Ltd,GB014125496,"193,217.53",
Crown Prosecution Service ,26/02/24,Intangibles asset purchase clearing CMS,DTS ICT Capital Expenditure,CGI IT UK Ltd,GB014125498,"56,406.49",
Crown Prosecution Service ,26/02/24,Recoverable VAT control,Balance Sheet,CGI IT UK Ltd,GB014125498,"11,281.30",Y
Crown Prosecution Service ,26/02/24,Recoverable VAT control,Balance Sheet,CGI IT UK Ltd,GB014125643,"4,237.45",Y
Crown Prosecution Service ,26/02/24,IT services,Apps and Hosting Contract,CGI IT UK Ltd,GB014125643,"21,187.24",
Crown Prosecution Service ,26/02/24,Recoverable VAT control,Balance Sheet,CGI IT UK Ltd,GB014125874,"113,308.44",Y
Crown Prosecution Service ,26/02/24,IT services,Apps and Hosting Contract,CGI IT UK Ltd,GB014125874,"566,542.20",
Crown Prosecution Service ,22/02/24,Other managed/contractor services,Central Legal Training Team,Ernst & Young LLP London,GB01G000513228,"29,336.40",Y
Crown Prosecution Service ,08/02/24,IT services,DTS Programme Project Cost,FlyForm LTD Cardiff,INV-11692,"120,270.00",Y
Crown Prosecution Service ,02/02/24,Recoverable VAT control,Balance Sheet,FlyForm LTD Cardiff,INV-11703,"4,879.21",Y
Crown Prosecution Service ,02/02/24,IT services,DTS Programme Project Cost,FlyForm LTD Cardiff,INV-11703,"24,395.99",
Crown Prosecution Service ,12/02/24,IT services,DTS Programme Project Cost,Farsight Consulting Ltd London,INV-2583,"217,065.60",Y
Crown Prosecution Service ,09/02/24,Recoverable VAT control,Balance Sheet,AVR Transcription Ltd Bolton,JAN24-CPS-36817,"18,431.62",Y
Crown Prosecution Service ,09/02/24,Transcriptions and Translation,Other Corporate Programme Payments,AVR Transcription Ltd Bolton,JAN24-CPS-36817,"92,158.09",
Crown Prosecution Service ,02/02/24,Crown Court Graduated Fee Scheme,London North Complex Casework Unit,5 King's Bench Walk,JB174032.AP,"36,831.24",Y
Crown Prosecution Service ,12/02/24,Crown Court Graduated Fee Scheme,London North Complex Casework Unit,QEB Hollis Whiteman Chambers,JEKC 115545 A,"33,031.68",Y
Crown Prosecution Service ,15/02/24,Crown Court Graduated Fee Scheme,West Midlands Crown Court Unit,St Philips Chambers,JJ696936,"25,610.16",Y
Crown Prosecution Service ,21/02/24,Crown Court Graduated Fee Scheme,West Midlands Crown Court Unit,2 Harcourt Buildings,JK/117522,"26,109.00",Y
Crown Prosecution Service ,29/02/24,Crown Court Graduated Fee Scheme,London North Complex Casework Unit,QEB Hollis Whiteman Chambers,JL 111268,"28,745.40",Y
Crown Prosecution Service ,19/02/24,Crown Court Graduated Fee Scheme,Thames and Chiltern Complex Casework Unit,QEB Hollis Whiteman Chambers,JL 112989 A,"34,587.36",Y
Crown Prosecution Service ,09/02/24,Crown Court Graduated Fee Scheme,London North Complex Casework Unit,5 King's Bench Walk,LO 178173 1,"62,462.40",Y
Crown Prosecution Service ,14/02/24,Crown Court Graduated Fee Scheme,RWD Midlands Wales Unit,5 King's Bench Walk,PBR180143,"46,163.16",Y
Crown Prosecution Service ,05/02/24,IT services,DTS Programme Project Cost,Reed Talent Solutions London,R41108469M,"39,568.92",Y
Crown Prosecution Service ,05/02/24,IT services,DTS Programme Project Cost,Reed Talent Solutions London,R41108470M,"30,748.93",Y
Crown Prosecution Service ,09/02/24,Crown Court Very High Cost Cases Full Scheme,Wessex Complex Casework Unit,St Philips Chambers,SDP T 695252,"29,124.24",Y
Crown Prosecution Service ,12/02/24,IT services,DTS Programme Project Cost,Bloom Procurement Services Ltd Gateshead,SIN049095,"153,245.51",Y
Crown Prosecution Service ,12/02/24,IT services,DTS Programme Project Cost,Bloom Procurement Services Ltd Gateshead,SIN049322,"112,065.58",Y
Crown Prosecution Service ,26/02/24,IT services,DTS Programme Project Cost,Bloom Procurement Services Ltd Gateshead,SIN049709,"180,568.36",Y
Crown Prosecution Service ,02/02/24,Crown Court Very High Cost Cases Full Scheme,West Midlands Complex Casework Unit,St Ives Chambers,som224454,"32,236.80",Y
Crown Prosecution Service ,29/02/24,Crown Court Graduated Fee Scheme,London North Crown Court Unit,5 King's Bench Walk,SW178883,"36,012.48",Y
Crown Prosecution Service ,19/02/24,Crown Court Graduated Fee Scheme,London North Complex Casework Unit,QEB Hollis Whiteman Chambers,wb 112053 b,"43,955.40",Y
Crown Prosecution Service ,13/02/24,Crown Court Very High Cost Cases Full Scheme,RWD Midlands Wales Unit,QEB Hollis Whiteman Chambers,wbkc 111389 j,"37,851.81",Y
Crown Prosecution Service ,13/02/24,Crown Court Very High Cost Cases Full Scheme,RWD Midlands Wales Unit,QEB Hollis Whiteman Chambers,wbkc 111389 k,"29,342.20",Y
Crown Prosecution Service ,02/02/24,Crown Court Graduated Fee Scheme,London North Complex Casework Unit,5 King's Bench Walk,WD178299.Trial,"32,187.84",Y
